Workbook

Sheet Voorblad
N24: Voorbeeld materiaal - Analoge klok
N33: © 2015, G-Info/G. Verbruggen
N34: www.ginfo.nl

Sheet Klok
B2: Tijd: | C2: =NOW() -> 42317.68545 | D2: Uur: | E2: =HOUR(C2) -> 16 | G2: Min: | H2: =MINUTE(C2) -> 27 | J2: Sec: | K2: =SECOND(C2) -> 3
E3: =MOD(E2,12) -> 4 | H3: =H2 -> 27 | K3: =K2 -> 3
C8: Klein | E8: Groot | G8: Sec
B9: TotSec | C9: =(E3*60+H3)*60+K3 -> 16023 | E9: =H3*60+K3 -> 1623 | G9: =K3 -> 3
B10: MaxSec | C10: =12*60*60 -> 43200 | E10: =60*60 -> 3600 | G10: =60 -> 60
B11: Fractie | C11: =C9/C10 -> 0.3709027778 | E11: =+E9/E10 -> 0.4508333333 | G11: =+G9/G10 -> 0.05
B12: Hoek | C12: =C11*360 -> 133.525 | E12: =E11*360 -> 162.3 | G12: =G11*360 -> 18
B13: Grootte | C13: 0.6 | E13: 0.8 | G13: 0.95
B14: x | C14: 0 | D14: =C13*COS((-C12+90)*2*PI()/360) -> 0.4350443704 | E14: 0 | F14: =E13*COS((-E12+90)*2*PI()/360) -> 0.2432264487 | G14: 0 | H14: =G13*COS((-G12+90)*2*PI()/360) -> 0.2935661447
B15: y | C15: 0 | D15: =C13*SIN((-C12+90)*2*PI()/360) -> -0.4132026087 | E15: 0 | F15: =E13*SIN((-E12+90)*2*PI()/360) -> -0.762129185 | G15: 0 | H15: =G13*SIN((-G12+90)*2*PI()/360) -> 0.9035036905
B18: Cirkel | C18: 0 | D18: 1
G19: Plaats: | H19: 0.9
B20: Uur | C20: Max | D20: Fractie | E20: Hoek | F20: x | H20: y
B21: 1 | C21: 12 | D21: =B21/C21 -> 0.08333333333 | E21: =D21*360 -> 30 | F21: 0 | G21: =$H$19*COS((-E21+90)*2*PI()/360) -> 0.45 | H21: 0 | I21: =$H$19*SIN((-E21+90)*2*PI()/360) -> 0.7794228634
B22: 2 | C22: 12 | D22: =B22/C22 -> 0.1666666667 | E22: =D22*360 -> 60 | F22: 0 | G22: =$H$19*COS((-E22+90)*2*PI()/360) -> 0.7794228634 | H22: 0 | I22: =$H$19*SIN((-E22+90)*2*PI()/360) -> 0.45
B23: 3 | C23: 12 | D23: 0.25 | E23: 90 | F23: 0 | G23: 0.9 | H23: 0 | I23: 0
B24: 4 | C24: 12 | D24: 0.3333333333 | E24: 120 | F24: 0 | G24: 0.7794228634 | H24: 0 | I24: -0.45
B25: 5 | C25: 12 | D25: 0.4166666667 | E25: 150 | F25: 0 | G25: 0.45 | H25: 0 | I25: -0.7794228634
B26: 6 | C26: 12 | D26: 0.5 | E26: 180 | F26: 0 | G26: 5.513168047e-17 | H26: 0 | I26: -0.9
B27: 7 | C27: 12 | D27: 0.5833333333 | E27: 210 | F27: 0 | G27: -0.45 | H27: 0 | I27: -0.7794228634
B28: 8 | C28: 12 | D28: 0.6666666667 | E28: 240 | F28: 0 | G28: -0.7794228634 | H28: 0 | I28: -0.45
B29: 9 | C29: 12 | D29: 0.75 | E29: 270 | F29: 0 | G29: -0.9 | H29: 0 | I29: -1.102633609e-16
B30: 10 | C30: 12 | D30: 0.8333333333 | E30: 300 | F30: 0 | G30: -0.7794228634 | H30: 0 | I30: 0.45
B31: 11 | C31: 12 | D31: 0.9166666667 | E31: 330 | F31: 0 | G31: -0.45 | H31: 0 | I31: 0.7794228634
B32: 12 | C32: 12 | D32: 1 | E32: 360 | F32: 0 | G32: -1.653950414e-16 | H32: 0 | I32: 0.9
